bitfinex/quotes_ETHUSD_20241004
["timestamp","ask_amount","ask_price","bid_price","bid_amount"]
[1728031197747,8.08609801,2394.6,2394.2,4.17673]
[1728031197949,8.08610801,2394.6,2394.2,4.17673]
[1728031198144,3.90994801,2394.6,2394.2,4.17673]
[1728031198733,3.90994801,2394.6,2394.2,5.022087]
[1728031200359,0.7793,2394.5,2394.2,5.022087]
[1728031200566,4.95555,2394.5,2394.2,0.845357]
[1728031201346,0.7793,2394.5,2394.2,5.022047]
[1728031201567,3.90994801,2394.6,2394.2,5.022047]
[1728031202289,8.19052164,2394.6,2394.2,5.022047]
[1728031202444,0.09733995,2394.5,2394.2,5.022047]
[1728031202752,3.90994801,2394.6,2394.2,5.022107]
[1728031202939,4.17623,2394.5,2394.2,0.845357]
[1728031203382,4.28064379,2394.5,2394.2,0.845357]
[1728031205763,4.1765,2394.4,2394.1,0.1]
[1728031205939,0.7601,2394.3,2394.1,0.1]
[1728031206631,0.7601,2394.3,2394.1,4.27682]
[1728031206787,4.17614,2394.6,2394.1,0.1]
[1728031206947,4.17614,2394.6,2394.2,4.17674]
[1728031207288,4.17624,2394.5,2394.1,4.27689]
[1728031207591,4.17613,2394.6,2394.2,4.17674]
[1728031209179,4.17625,2394.5,2394.2,4.17674]
[1728031209383,5.03166376,2394.5,2394.1,4.2769]
[1728031210888,4.92725,2394.5,2394.1,4.27678]
[1728031211481,5.03166377,2394.5,2394.1,4.27678]
[1728031211900,0.7995,2394.7,2394.3,4.17652]
[1728031212071,0.7995,2394.9,2394.6,4.17603]
[1728031212277,0.7995,2394.9,2394.6,4.17599]
[1728031212596,4.17537,2395.0,2394.6,4.17601]
[1728031212906,4.27976269,2395.0,2394.6,4.17601]
[1728031213069,4.27976269,2395.0,2394.5,0.55]
[1728031213276,4.27976269,2395.0,2394.6,4.17604]
[1728031213670,0.09736079,2394.9,2394.6,4.17604]
[1728031213897,0.7995,2394.8,2394.5,5.27551]
[1728031214139,0.7995,2394.8,2394.5,0.54934]
[1728031214266,4.97522,2394.8,2394.4,4.17636]
[1728031214468,0.7995,2394.8,2394.6,4.17604]
[1728031215212,4.17511,2395.2,2394.7,4.96157]
[1728031215389,0.10438722,2395.2,2394.9,4.17544]
[1728031215562,0.7607,2395.3,2394.9,0.913672]
[1728031215765,0.7607,2395.3,2395.0,4.17521]
[1728031216430,0.7607,2395.3,2395.1,4.17517]
[1728031216563,0.7663,2395.6,2395.3,4.17484]
[1728031216765,0.87066681,2395.6,2395.3,4.17484]
[1728031217006,0.87066681,2395.6,2395.3,4.17474]
[1728031218299,0.87066681,2395.6,2395.1,4.99613]
[1728031218300,5.04498681,2395.6,2395.1,4.99613]
[1728031218485,4.17449,2395.5,2395.1,4.17503]
[1728031218685,0.07493758,2395.4,2394.9,4.99498]
[1728031218873,4.17484,2395.3,2394.9,4.99498]
[1728031219513,4.17484,2395.3,2394.9,4.17538]
[1728031219870,4.17484,2395.3,2394.7,4.98024]
[1728031219871,5.05953231,2395.2,2394.7,4.98024]
[1728031220072,5.05953231,2395.2,2394.8,4.17571]
[1728031220288,0.09737185,2395.1,2394.8,4.17571]
[1728031220602,4.98458,2395.2,2394.8,4.17571]
[1728031220603,5.08896703,2395.2,2394.8,4.17571]
[1728031221399,0.91388703,2395.2,2394.9,4.17552]
[1728031221975,0.8095,2395.2,2394.9,4.17552]
[1728031222177,0.10438379,2395.3,2395.0,4.17536]
[1728031222381,7.31,2395.7,2394.9,1.243352]
[1728031222382,0.7676,2395.6,2394.9,1.243352]
[1728031222607,0.7676,2395.6,2395.4,4.17463]
[1728031223999,0.87196555,2395.6,2395.4,4.17463]
[1728031224320,0.87196555,2395.6,2395.3,4.1748]
[1728031226317,0.87196555,2395.6,2395.4,4.17466]
[1728031226816,7.31,2395.7,2395.5,4.17449]
[1728031227025,7.31,2395.7,2395.4,0.7897]
[1728031227245,7.31,2395.7,2395.6,4.17431]
[1728031227519,3.0,2396.0,2395.6,4.17431]
[1728031227685,3.10434941,2396.0,2395.6,4.17431]
[1728031228245,4.17397,2395.8,2395.4,4.17453]
[1728031228382,0.10436298,2395.7,2395.4,4.17453]
[1728031229278,0.10436298,2395.7,2395.4,8.3491]
[1728031229511,0.10436298,2395.7,2395.4,4.17453]
[1728031230192,0.10436298,2395.7,2395.4,8.34911]
[1728031230515,0.10436298,2395.7,2395.4,4.17453]
[1728031231224,0.10436298,2395.7,2395.4,8.34913]
[1728031232586,0.10436298,2395.7,2395.4,4.17453]
[1728031232786,0.10436298,2395.7,2395.4,8.3491]
[1728031232986,0.10436298,2395.7,2395.4,8.34912]
[1728031233227,0.10436298,2395.7,2395.5,4.17441]
[1728031233379,0.10435941,2395.8,2395.5,4.17441]
[1728031233814,0.10435941,2395.8,2395.5,8.34882]
[1728031234224,7.17343,2396.2,2395.8,4.17386]
[1728031234225,0.778,2396.1,2395.8,4.17386]
[1728031234382,0.778,2396.1,2395.8,4.17381]
[1728031234587,0.88234277,2396.1,2395.9,4.17378]
[1728031234825,0.7513,2396.3,2396.0,4.17362]
[1728031235296,0.7656,2396.5,2396.2,4.17325]
[1728031235506,0.10433143,2396.4,2396.2,4.17325]
[1728031235801,0.10433143,2396.4,2396.0,5.00141]
[1728031235995,4.17323,2396.3,2395.9,4.17378]
[1728031236314,4.17323,2396.3,2395.7,0.55]
[1728031236315,4.27757091,2396.3,2395.7,0.55]
[1728031236492,4.17329,2396.2,2395.8,4.17394]
[1728031236687,0.10434211,2396.1,2395.8,4.17394]
[1728031236886,0.10434189,2396.2,2395.8,4.17394]
[1728031237122,4.27763189,2396.2,2395.8,4.17394]
[1728031237320,4.27763189,2396.2,2395.4,4.17459]
[1728031237321,4.96996,2396.1,2395.3,1.2332]
[1728031237518,4.27807357,2396.0,2395.6,4.17431]
[1728031237894,0.10435443,2396.0,2395.7,4.17403]
[1728031238101,0.7965,2396.1,2395.8,4.17395]
[1728031240499,4.17337,2396.2,2395.8,4.17386]
[1728031241391,4.99162,2396.3,2395.8,4.17386]
[1728031241593,4.17329,2396.2,2395.8,8.34774]
[1728031241793,4.17329,2396.2,2395.8,4.17386]
[1728031241998,4.17346,2396.1,2395.7,4.96471]
[1728031242205,5.19433145,2396.1,2395.6,4.17414]
[1728031242409,0.8217,2395.9,2395.6,4.17414]
[1728031243129,0.8217,2395.9,2395.6,8.34839]
[1728031244200,0.8217,2395.9,2395.7,4.17412]
[1728031245541,4.17397,2395.8,2395.4,4.93466]
[1728031245898,4.27833051,2395.8,2395.4,4.93466]
[1728031246240,4.27833051,2395.8,2395.4,4.17456]
[1728031246710,4.27833051,2395.8,2395.4,8.34916]
[1728031246909,4.9955,2395.9,2395.5,4.17441]
[1728031247634,0.10436037,2395.8,2395.5,4.17441]
[1728031247838,4.27833037,2395.8,2395.4,4.17463]
[1728031249064,4.17447,2395.6,2395.2,4.17494]
[1728031249216,0.89706753,2395.5,2395.2,4.17494]
[1728031250211,0.89706753,2395.5,2395.1,4.17505]
[1728031250516,5.07158753,2395.5,2395.1,4.17505]
[1728031250722,5.99616328,2395.5,2395.1,4.17511]
[1728031250933,5.07155753,2395.5,2395.1,4.17511]
[1728031252952,0.7927,2395.5,2395.2,4.17492]
[1728031254257,0.89707283,2395.5,2395.2,4.17492]
[1728031255076,0.89707283,2395.5,2395.0,4.95454]
[1728031255231,5.07163283,2395.5,2395.1,4.17516]
[1728031255429,5.99623311,2395.5,2395.1,4.17516]
[1728031255955,5.99623311,2395.5,2394.9,4.17537]
[1728031256156,4.17468,2395.4,2395.0,4.17528]
[1728031256364,4.17468,2395.4,2394.8,0.8159]
[1728031256365,4.17499,2395.3,2394.8,0.8159]
[1728031256548,1.71730028,2395.5,2394.6,0.7855]
[1728031256549,4.97968,2395.2,2394.6,0.7855]
[1728031256877,4.17519,2395.1,2394.7,4.17585]
[1728031257028,4.97963,2395.2,2394.8,4.1757]
[1728031257366,0.10438951,2395.1,2394.8,4.1757]
[1728031257868,0.10438951,2395.1,2394.9,4.1755]
[1728031258066,0.8046,2395.2,2394.9,4.1755]
[1728031258067,0.90898635,2395.2,2394.9,4.1755]
[1728031259468,5.08413635,2395.2,2394.8,4.96119]
[1728031259679,6.01004199,2395.2,2394.8,4.17569]
[1728031260348,4.17527,2395.1,2394.7,4.17584]
[1728031260549,3.0,2395.6,2394.7,4.17584]
[1728031260550,0.8026,2395.4,2395.1,4.17511]
[1728031260758,0.10437636,2395.5,2395.1,5.347521]
[1728031260959,0.10437636,2395.5,2395.1,4.93001]
[1728031261388,0.10437636,2395.5,2395.3,4.17475]
[1728031261535,4.17418,2395.7,2395.2,4.1749]
[1728031261735,4.27876273,2395.6,2395.2,4.1749]
[1728031261958,4.27876273,2395.6,2395.2,8.34984]
[1728031262465,4.17418,2395.7,2395.2,4.1749]
[1728031262667,4.27872259,2395.6,2395.2,4.17499]
[1728031263010,4.17435,2395.6,2395.2,8.34993]
[1728031263150,4.17435,2395.6,2395.2,4.17494]
[1728031263354,0.10437257,2395.5,2395.2,4.17494]
[1728031263552,4.50344941,2395.8,2395.4,4.17466]
[1728031265179,0.10436648,2395.7,2395.4,4.17466]
[1728031266165,0.10436648,2395.7,2395.0,4.17532]
[1728031266166,4.17468,2395.4,2395.0,4.17532]
[1728031266401,4.98118,2395.4,2395.0,4.17532]
[1728031266580,5.0855526,2395.4,2395.0,4.17532]
[1728031267109,0.9108726,2395.4,2395.1,4.17516]
[1728031268296,0.9108726,2395.4,2395.2,4.17501]
[1728031268657,0.8065,2395.4,2395.2,4.17501]
[1728031269261,0.8065,2395.4,2395.2,8.34995]
[1728031269901,0.8065,2395.4,2395.2,8.34984]
[1728031270260,0.10437248,2395.3,2395.0,5.091452]
[1728031270617,0.10437248,2395.3,2395.1,4.1751]
[1728031272758,7.31,2395.9,2395.4,4.17465]
[1728031272759,4.17406,2395.8,2395.4,4.17465]
[1728031273007,9.14174,2395.8,2395.4,4.17465]
[1728031273299,0.10436632,2395.7,2395.4,4.17465]
[1728031273802,0.10436632,2395.7,2395.2,4.983]
[1728031273803,4.1744,2395.6,2395.2,4.983]
[1728031273961,4.27876639,2395.6,2395.2,4.983]
[1728031274161,4.27876639,2395.6,2395.2,9.15794]
[1728031274367,4.27876639,2395.6,2395.2,4.983]
[1728031274791,4.27876639,2395.6,2395.2,9.15793]
[1728031275976,0.10436639,2395.6,2395.2,4.983]
[1728031276183,4.27868639,2395.6,2395.2,4.983]
[1728031277111,0.7788,2395.4,2395.0,4.93438]
[1728031277323,4.1751,2395.2,2394.8,4.93474]
[1728031277607,0.1043855,2395.1,2394.8,4.17564]
[1728031278373,4.2796155,2395.1,2394.7,4.17581]
[1728031278583,0.761,2395.0,2394.7,4.17581]
[1728031278810,0.761,2395.0,2394.7,4.17579]
[1728031279097,0.761,2395.0,2394.7,8.3516]
[1728031279566,0.761,2395.0,2394.7,4.17579]
[1728031281481,0.761,2395.0,2394.7,8.3516]
[1728031282188,0.761,2395.0,2394.8,4.17569]
[1728031283286,0.761,2395.0,2394.7,4.17579]
[1728031283688,0.10438935,2394.9,2394.6,4.17605]
[1728031284574,4.28000935,2394.9,2394.4,4.97207]
[1728031284810,4.17578,2394.8,2394.4,4.17637]
[1728031285010,0.10440409,2394.7,2394.4,4.17637]
[1728031285516,4.67964094,2394.9,2394.5,4.17617]
[1728031287194,4.17554,2394.9,2394.5,4.17617]
[1728031287411,8.35121,2394.9,2394.5,4.17617]
[1728031288317,4.17554,2394.9,2394.5,4.17617]
[1728031292820,4.17554,2394.9,2394.6,4.17606]
[1728031293034,4.9364,2395.0,2394.6,4.94256]
[1728031293798,0.10439901,2394.9,2394.6,4.94256]
[1728031294024,0.10439901,2394.9,2394.6,4.17606]
[1728031294193,4.27997901,2394.9,2394.5,4.17617]
[1728031294539,4.27997901,2394.9,2394.5,8.3523]
[1728031295038,4.27997901,2394.9,2394.5,4.17613]
[1728031296424,4.27997901,2394.9,2394.3,4.17647]
[1728031296425,5.00015,2394.8,2394.3,4.17647]
[1728031296784,0.10440517,2394.7,2394.4,4.17633]
[1728031298042,5.00015,2394.8,2394.3,4.17647]
[1728031298223,5.00015,2394.8,2394.4,4.17632]
[1728031299430,5.00014,2394.8,2394.4,4.17632]
[1728031300239,0.8243,2394.8,2394.5,4.17616]
[1728031300446,4.27978993,2395.0,2394.6,4.97052]
[1728031300649,4.17539,2395.0,2394.6,4.97052]
[1728031301022,0.10440007,2394.9,2394.6,4.97052]
[1728031301244,4.27994007,2394.9,2394.5,4.17619]
[1728031301661,0.8253,2394.7,2394.4,4.17639]
[1728031304527,4.17557,2394.9,2394.4,4.17627]
[1728031304856,0.7982,2395.0,2394.6,4.17601]
[1728031304857,4.97362,2395.0,2394.6,4.17601]
[1728031305528,0.10439964,2394.9,2394.6,4.17601]
[1728031307321,4.97362,2395.0,2394.6,4.17601]
[1728031307726,0.10439996,2394.9,2394.6,4.17601]
[1728031308763,4.27995996,2394.9,2394.6,4.17601]
[1728031309258,0.10439996,2394.9,2394.6,4.17601]
[1728031309960,4.9737,2395.0,2394.6,4.94661]
[1728031310322,0.10439995,2395.1,2394.8,4.17562]
[1728031310525,4.96109,2395.5,2395.0,4.17536]
[1728031310754,7.31,2395.6,2395.2,4.96279]
[1728031310755,4.17439,2395.6,2395.2,4.96279]
[1728031311056,4.17439,2395.6,2395.2,4.96271]
[1728031311621,4.17471,2395.4,2395.0,4.92556]
[1728031311819,4.17471,2395.4,2394.8,4.17555]
[1728031311820,4.17508,2395.2,2394.8,4.17562]
[1728031312074,4.27957819,2395.1,2394.7,4.92617]
[1728031313261,0.10438819,2395.1,2394.7,4.92617]
[1728031313473,0.10438819,2395.1,2394.7,9.10197]
[1728031313624,4.17508,2395.2,2394.8,4.17569]
[1728031313824,0.10439344,2395.2,2394.9,4.17552]
[1728031314468,4.93612,2395.3,2394.9,4.17552]
[1728031314759,0.10438803,2395.2,2394.9,4.17552]
[1728031314962,4.27947803,2395.2,2394.8,4.17569]
[1728031316257,0.10438803,2395.2,2394.8,4.17569]
[1728031316961,4.27950803,2395.2,2394.8,4.17569]
[1728031317135,4.72101009,2395.2,2394.8,4.17569]
[1728031319304,0.44150206,2395.2,2394.9,4.17552]
[1728031319485,4.93608,2395.3,2394.9,4.17552]
[1728031320644,0.7612,2395.3,2395.0,4.17526]
[1728031321382,4.17471,2395.4,2395.0,4.17526]
[1728031321581,0.7874,2395.7,2395.4,4.17463]
[1728031321803,0.25522701,2395.7,2395.4,4.17463]
[1728031322469,4.49731756,2395.7,2395.3,4.1747]
[1728031322651,4.17432,2395.6,2395.3,4.1747]
[1728031322851,4.24226055,2395.6,2395.3,4.1747]
[1728031323271,5.10945031,2395.6,2395.1,0.8321]
[1728031323444,4.17473,2395.4,2395.0,4.17532]
[1728031323784,0.06794055,2395.3,2395.0,4.17532]
[1728031324349,0.06794055,2395.3,2395.0,4.17522]
[1728031324550,0.06794055,2395.4,2395.1,4.17516]
[1728031325667,4.17453,2395.5,2395.2,4.17501]
[1728031325983,4.42953701,2395.7,2395.2,4.17501]
[1728031326154,4.24229055,2395.6,2395.2,4.17501]
[1728031326573,0.25522701,2395.7,2394.9,4.93053]
[1728031326574,4.42938701,2395.7,2394.9,4.93053]
[1728031326778,0.06794055,2395.6,2395.3,4.17469]
[1728031327209,4.17399,2395.8,2395.4,4.17459]
[1728031328475,4.17399,2395.8,2395.5,0.7657]
[1728031333795,0.06794055,2395.7,2395.5,0.7657]
[1728031334130,0.06794055,2395.7,2395.4,4.17459]
[1728031336026,4.24209055,2395.7,2395.4,4.17459]
[1728031336383,3.82369056,2395.7,2395.4,4.17459]
[1728031337487,4.602,2395.9,2395.4,4.17459]
[1728031337687,4.17404,2395.8,2395.4,4.17459]
[1728031339489,8.34817,2395.8,2395.4,4.17459]
[1728031342427,4.17404,2395.8,2395.3,0.8148]
[1728031342635,4.17383,2395.9,2395.5,4.17448]
[1728031343519,4.17373,2396.0,2395.6,4.17422]
[1728031343738,7.17348,2396.1,2395.7,4.98578]
[1728031343921,3.4282,2396.3,2395.9,4.17377]
[1728031344125,4.17293,2396.4,2396.0,4.17358]
[1728031344435,4.17293,2396.4,2396.1,0.8117]
[1728031344761,0.4282,2396.5,2396.1,0.8117]
[1728031344762,4.60096,2396.5,2396.1,4.98514]
[1728031344907,4.17303,2396.4,2396.1,0.8117]
[1728031347023,4.17313,2396.3,2396.1,0.8117]
[1728031347538,4.17295,2396.4,2396.1,0.8117]
[1728031347945,4.17323,2396.3,2396.1,0.8117]
[1728031348146,4.17357,2396.1,2395.8,0.7794]
[1728031348346,4.17363,2396.0,2395.6,4.93787]
[1728031348852,4.17365,2396.0,2395.6,4.93789]
[1728031349649,4.17365,2396.0,2395.6,0.7636]
[1728031349650,4.17381,2395.9,2395.6,0.7636]
[1728031350424,4.60172,2396.1,2395.7,4.1741]
[1728031350630,4.17352,2396.1,2395.6,0.7636]
[1728031350828,4.17352,2396.1,2395.7,4.17407]
[1728031351033,4.17352,2396.1,2395.7,8.34814]
[1728031351466,4.17352,2396.1,2395.7,4.17407]
[1728031352127,4.60141,2396.3,2395.7,4.17407]
[1728031352338,4.17336,2396.2,2395.6,4.93791]
[1728031352921,4.17354,2396.1,2395.7,4.17412]
[1728031354132,4.17354,2396.1,2395.7,8.34817]
[1728031354329,4.17354,2396.1,2395.6,0.7636]
[1728031354639,4.17368,2396.0,2395.6,4.93788]
[1728031354969,4.1738,2395.9,2395.4,4.95392]
[1728031355139,4.17398,2395.8,2395.4,4.95392]
[1728031355572,0.4282,2396.0,2395.6,4.17424]
[1728031355573,4.60189,2396.0,2395.6,4.17424]
[1728031355869,4.17357,2396.1,2395.7,4.17409]
[1728031356268,3.0,2396.3,2395.8,4.17383]
[1728031356430,7.17318,2396.3,2395.9,4.98818]
[1728031356773,3.0,2396.3,2395.9,4.98818]
[1728031356928,4.17277,2396.5,2396.1,4.17341]
[1728031357376,4.17293,2396.4,2396.0,4.1736]
[1728031358343,4.17293,2396.4,2395.9,4.98826]
[1728031358344,4.17312,2396.3,2395.9,4.98826]
[1728031358752,4.17368,2396.0,2395.6,4.95813]
[1728031359140,4.17368,2396.0,2395.7,4.17413]
[1728031359651,4.17368,2396.0,2395.6,0.7839]
[1728031359856,4.17368,2396.0,2395.6,4.95818]
[1728031361431,4.17368,2396.0,2395.6,9.13235]
[1728031361849,4.17368,2396.0,2395.7,4.17413]
[1728031362349,4.17368,2396.0,2395.6,4.95815]
[1728031363683,4.17368,2396.0,2395.6,4.95814]
[1728031364576,4.17388,2395.9,2395.6,0.7839]
[1728031365575,4.17388,2395.9,2395.6,4.95821]
[1728031365779,4.17362,2396.0,2395.7,4.17404]
[1728031366279,4.17362,2396.0,2395.6,4.95818]
[1728031366776,4.17362,2396.0,2395.6,0.7839]
[1728031366995,4.17381,2395.9,2395.6,0.7839]
[1728031367282,4.17364,2396.0,2395.6,4.95821]
[1728031367642,8.34735,2396.0,2395.6,4.95821]
[1728031368452,4.17392,2395.9,2395.5,4.17447]
[1728031368676,8.77608,2395.9,2395.5,4.17447]
[1728031368880,4.17401,2395.8,2395.4,4.97593]
[1728031369439,4.60212,2395.9,2395.4,4.97593]
[1728031369780,4.60212,2395.9,2395.5,4.17442]
[1728031370077,4.17397,2395.8,2395.4,9.15052]
[1728031370637,4.17397,2395.8,2395.4,4.9759]
[1728031370842,4.17397,2395.8,2395.4,9.15049]
[1728031371074,4.17397,2395.8,2395.4,4.97589]
[1728031371254,4.17397,2395.8,2395.5,4.17447]
[1728031372249,4.17397,2395.8,2395.4,4.97589]
[1728031372853,4.17397,2395.8,2395.4,9.15048]
[1728031373369,4.17397,2395.8,2395.4,4.97589]
[1728031373680,4.17397,2395.8,2395.4,9.15049]
[1728031373975,4.17397,2395.8,2395.4,4.97589]
[1728031374183,4.17397,2395.8,2395.4,9.15044]
[1728031374354,4.17397,2395.8,2395.4,4.97425]
[1728031374676,4.17397,2395.8,2395.4,4.96865]
[1728031375248,4.602,2395.9,2395.1,4.17355]
[1728031375249,4.17436,2395.6,2395.1,4.17355]
[1728031375551,4.17436,2395.6,2395.2,4.16932]
[1728031375755,4.17436,2395.6,2395.2,4.16852]
[1728031376087,4.17436,2395.6,2395.2,4.16692]
[1728031376246,4.17436,2395.6,2395.2,4.16452]
[1728031376446,5.051777,2395.7,2395.3,4.17483]
[1728031376670,9.226087,2395.7,2395.3,4.17403]
[1728031376895,5.051777,2395.7,2395.3,4.17403]
[1728031377243,5.051777,2395.7,2395.3,4.16843]
[1728031377481,5.051777,2395.7,2395.3,4.16763]
[1728031377699,5.051777,2395.7,2395.3,4.92523]
[1728031378187,5.051777,2395.7,2395.3,4.91963]
[1728031378484,5.051777,2395.7,2395.3,4.91723]
[1728031378682,0.4282,2395.9,2395.3,4.91723]
[1728031378868,4.1742,2395.7,2395.3,4.91723]
[1728031379420,4.1742,2395.7,2395.3,4.91643]
[1728031380196,4.17331,2396.2,2395.8,4.17387]
[1728031380342,4.1731,2396.3,2395.9,4.17374]
[1728031380695,4.1731,2396.3,2395.8,4.591327]
[1728031380696,4.17331,2396.2,2395.8,4.591327]
[1728031380990,4.17331,2396.2,2395.8,4.97674]
[1728031381551,4.17313,2396.3,2395.9,4.17376]
[1728031382179,8.34638,2396.3,2395.8,4.97674]
[1728031382363,4.1733,2396.2,2395.8,4.97669]
[1728031384177,4.1733,2396.2,2395.8,9.15056]
[1728031384420,8.34666,2396.2,2395.8,4.97667]
[1728031384573,4.1733,2396.2,2395.8,4.97667]
[1728031384916,0.4354,2396.1,2395.6,4.1742]
[1728031385086,4.1737,2396.0,2395.6,4.9759]
[1728031385882,8.34744,2396.0,2395.6,4.9759]
[1728031386221,4.1737,2396.0,2395.6,4.9759]
[1728031386420,0.4354,2396.1,2395.6,0.8017]
[1728031386629,4.17404,2395.8,2395.4,4.94999]
[1728031387220,4.17415,2395.7,2395.4,0.7754]
[1728031388103,4.17434,2395.6,2395.2,4.95918]
[1728031388416,4.17434,2395.6,2395.2,9.13405]
[1728031388622,4.60957,2395.7,2395.2,4.95907]
[1728031388832,4.17443,2395.6,2395.2,4.95907]
[1728031389322,4.17467,2395.4,2395.2,0.7842]
[1728031389543,4.1745,2395.5,2395.2,0.7842]
[1728031391106,4.17436,2395.6,2395.2,4.9592]
[1728031391735,4.17436,2395.6,2395.2,0.7842]
[1728031391896,4.17455,2395.5,2395.2,0.7842]
[1728031393033,4.17436,2395.6,2395.2,4.9592]
[1728031393538,4.17464,2395.5,2395.2,0.7842]
[1728031393837,4.17469,2395.4,2395.2,0.7842]
[1728031394128,4.17456,2395.5,2395.2,0.7842]
[1728031394303,8.34919,2395.5,2395.2,0.7842]
[1728031394631,4.17467,2395.4,2395.0,4.96248]
[1728031395334,4.17456,2395.5,2395.0,4.96248]
[1728031395631,4.77410067,2395.5,2395.1,4.17518]
[1728031395795,0.59954067,2395.5,2395.0,0.7872]
[1728031395996,4.17508,2395.2,2394.8,4.97726]
[1728031396396,4.17519,2395.1,2394.8,4.97726]
[1728031397312,4.17554,2394.9,2394.6,1.1974]
[1728031397510,0.4354,2395.3,2394.4,0.8026]
[1728031397511,4.17614,2394.6,2394.4,0.8026]
[1728031397913,4.17614,2394.6,2394.2,4.97928]
[1728031398711,4.17614,2394.6,2394.2,4.97927]
[1728031398905,4.17583,2394.8,2394.2,4.97927]
[1728031399101,4.17596,2394.7,2394.3,4.17651]
[1728031399648,4.17596,2394.7,2394.2,9.15592]
[1728031400113,4.17596,2394.7,2394.3,4.17658]
[1728031400313,4.1761,2394.6,2394.2,6.76248925]
[1728031400836,4.1761,2394.6,2394.2,10.93913925]
[1728031401023,4.636843,2394.8,2394.2,6.76248925]
[1728031401225,4.17589,2394.7,2394.3,4.17656]
[1728031401425,4.17589,2394.7,2394.2,6.76248925]
[1728031401745,4.1761,2394.6,2394.2,6.76248925]
[1728031402522,4.1761,2394.6,2394.2,10.93913925]
[1728031403238,4.636853,2394.8,2394.2,10.93913925]
[1728031403239,4.636853,2394.8,2394.2,6.76248925]
[1728031403445,4.17595,2394.7,2394.3,4.17658]
[1728031404444,4.17595,2394.7,2394.2,6.76248925]
[1728031404632,4.17609,2394.6,2394.2,6.76248925]
[1728031405035,4.61149,2394.6,2394.2,6.76248925]
[1728031405231,4.17631,2394.5,2394.2,0.8026]
[1728031405463,4.17649,2394.4,2394.1,0.1]
[1728031407023,4.17631,2394.5,2394.1,4.27692]
[1728031407232,4.17592,2394.7,2394.3,0.7899]
[1728031407429,4.17573,2394.8,2394.4,1.78323925]
[1728031407630,4.17573,2394.8,2394.3,0.7899]
[1728031407631,4.17573,2394.8,2394.3,4.96636]
[1728031407842,4.17573,2394.8,2394.3,9.82779993]
[1728031408137,4.17573,2394.8,2394.3,9.82781993]
[1728031408326,4.17573,2394.8,2394.4,5.95961925]
[1728031409244,4.17573,2394.8,2394.4,4.17638]
[1728031411665,4.17573,2394.8,2394.3,3.25809918]
[1728031411833,4.17589,2394.7,2394.3,5.65140993]
[1728031412367,4.17613,2394.6,2394.3,0.7899]
[1728031412839,4.17589,2394.7,2394.3,0.7899]
[1728031413039,4.17589,2394.7,2394.3,4.96646]
[1728031414361,4.17589,2394.7,2394.3,0.7899]
[1728031414592,4.17608,2394.6,2394.3,0.7899]
[1728031414864,4.17608,2394.6,2394.2,4.17673]
[1728031415037,4.17608,2394.6,2394.2,4.93403]
[1728031415645,4.17608,2394.6,2394.2,9.11071]
[1728031416044,4.17608,2394.6,2394.2,9.11062]
[1728031416729,4.17608,2394.6,2394.2,4.93394]
[1728031418152,4.17593,2394.7,2394.3,4.17657]
[1728031418357,4.17607,2394.6,2394.3,4.17657]
[1728031419232,4.17607,2394.6,2394.2,4.93401]
[1728031420567,0.461083,2394.8,2394.3,4.17649]
[1728031420780,4.636913,2394.8,2394.4,4.17641]
[1728031421342,4.1759,2394.7,2394.3,4.17654]
[1728031421538,4.1759,2394.7,2394.3,8.35305]
[1728031421741,4.1759,2394.7,2394.3,4.17651]
[1728031422779,4.17608,2394.6,2394.2,4.93402]
[1728031424687,4.61148,2394.6,2394.2,4.93402]
[1728031424845,4.61148,2394.6,2394.3,4.17658]
[1728031425477,4.61148,2394.6,2394.2,4.17672]
[1728031425679,4.61148,2394.6,2394.2,8.3534]
[1728031427243,8.78763,2394.6,2394.2,4.17666]
[1728031427581,4.61148,2394.6,2394.2,4.17666]
[1728031427789,4.61148,2394.6,2394.1,0.1]
[1728031427790,1.3602443,2394.6,2394.1,4.27688]
[1728031427952,4.61149,2394.6,2394.2,4.17675]
[1728031429047,8.78769,2394.6,2394.2,4.17675]
[1728031430693,8.78768,2394.6,2394.2,4.17675]
[1728031431794,4.17626,2394.5,2394.2,4.17675]
[1728031432993,4.61148,2394.6,2394.2,4.17675]
[1728031434286,5.072353,2394.8,2394.3,4.94617]
[1728031434492,4.17589,2394.7,2394.4,4.17634]
[1728031434788,4.17589,2394.7,2394.3,4.94615]
[1728031436106,8.35195,2394.7,2394.3,4.94615]
[1728031436308,9.622545,2394.7,2394.3,4.94615]
[1728031436510,5.446485,2394.7,2394.2,4.1767]
[1728031436707,4.17612,2394.6,2394.2,4.1767]
[1728031437707,5.446485,2394.7,2394.3,4.17651]
[1728031438411,4.17608,2394.6,2394.2,4.17667]
[1728031439111,5.446485,2394.7,2394.2,4.17667]
[1728031439407,9.622505,2394.7,2394.3,4.17655]
[1728031439606,5.446485,2394.7,2394.3,4.17655]
[1728031439807,4.17611,2394.6,2394.2,4.17667]
[1728031440010,4.17611,2394.6,2394.3,4.17657]
[1728031441200,4.61132,2394.7,2394.3,4.17657]
[1728031442901,4.61132,2394.7,2394.2,4.18708]
[1728031443110,4.17611,2394.6,2394.2,4.18708]
[1728031443323,4.17637,2394.5,2394.2,4.18714]
[1728031443482,4.17615,2394.6,2394.2,4.18714]
[1728031443681,0.9248682,2394.5,2394.2,4.18714]
[1728031443906,4.17615,2394.6,2394.2,4.18714]
[1728031444980,4.17637,2394.5,2394.2,0.01041]
[1728031446221,0.4354,2394.4,2394.2,0.01041]
[1728031446580,4.61153,2394.6,2394.2,4.18711]
[1728031447076,4.17601,2394.7,2394.3,4.97368]